Cogmind - Beta 11 X8 @@@ ROGUE MODE // 2021.11.29 @ 02:19:31 Player: Runia Result: Destroyed by G-47 Trooper with Particle Gun Performance ------------- Evolutions (1) 500 Regions Visited (6) 1200 Robots Destroyed (108) 540 Value Destroyed (2355) 2355 Prototype IDs (16) 320 Alien Tech Used (0) 0 Bonus (298) 298 TOTAL SCORE: 5213 Bonus ------- High Alert Combat Kills 128 Follower Combat Kills 170 Cogmind --------- Core Integrity 0/400 Matter 257/300 Energy 310/310 System Corruption 0% Temperature Cool (9) Movement Walking (190) Ox1 Location -8/Mines Parts ------- > --- POWER (1) -------- Reinforced Fission Core > --- PROPULSION (2) --- Advanced Myomer Leg Advanced Myomer Leg > --- UTILITY (3) ------ Advanced Heat Sink High-capacity Storage Unit Experimental Targeting Computer > --- WEAPON (3) ------- Light Assault Rifle Heavy Assault Rifle Heavy Assault Rifle > --- INVENTORY (20) --- Heavy Deuterium Engine Makeshift Leg Makeshift Leg Combat Antigrav System Experimental Heat Sink Advanced Matter Compressor (4) Gravity Neutralizing Apparatus Structural Scanner Enhanced Optical Array Improved Target Analyzer Experimental Core Analyzer Improved Armor Integrity Analyzer Advanced Weapon Cycler Advanced Transmission Jammer Experimental Hacking Suite Authchip [R/Combat] AS-neutralizer No. 17b Rocket Launcher Mini Grenade Launcher Peak State ------------ > --- POWER ------------ Reinforced Fission Core > --- PROPULSION ------- Advanced Myomer Leg Advanced Myomer Leg > --- UTILITY ---------- High-capacity Storage Unit 8R-AWN's Armor/EX > --- WEAPON ----------- Light Assault Rifle 8R-AWN's Boregun 8R-AWN's Boregun > --- INVENTORY -------- Heavy Deuterium Engine Light Treads Makeshift Leg Makeshift Leg Combat Antigrav System Experimental Heat Sink High-capacity Matter Pod Gravity Neutralizing Apparatus Structural Scanner Experimental Targeting Computer Improved Target Analyzer Improved Armor Integrity Analyzer Advanced Weapon Cycler Advanced Transmission Jammer AS-neutralizer No. 17b Light Assault Rifle Heavy Assault Rifle Heavy Assault Rifle Rocket Launcher Mini Grenade Launcher [Rating: 72] Favorites ----------- Power Ion Engine Engine Ion Engine Power Core Reinforced Fission Core Propulsion Light Treads Treads Light Treads Leg Advanced Myomer Leg Wheel Wheel Utility Large Storage Unit Device Structural Scanner Storage Large Storage Unit Processor Experimental Targeting Computer Hackware Hacking Suite Protection Propulsion Shielding Weapon Assault Rifle Ballistic Gun Assault Rifle Launcher Mini Grenade Launcher Special Weapon Plasma Cutter Build | -11 -10 -10 -9 -9 -9 -8 ------- Run | Scr Mat Min Mat Min Exi Min Slots Evolved 2 | . . . 2 . . . Power . | . . . . . . . Propulsion . | . . . . . . . Utility 1 | . . . 1 . . . Weapon 1 | . . . 1 . . . Parts Attached 81 | 2 14 4 21 4 29 7 Power 6 | . 1 1 2 1 1 . Engine 5 | . 1 1 2 1 . . Core 1 | . . . . . 1 . Reactor . | . . . . . . . Propulsion 21 | 2 4 1 7 1 6 . Treads 16 | 2 3 1 6 . 4 . Leg 2 | . . . . . 2 . Wheel 3 | . 1 . 1 1 . . Hover . | . . . . . . . Flight . | . . . . . . . Utility 23 | . 5 . 5 . 9 4 Device 6 | . . . 1 . 3 2 Storage 7 | . 2 . 1 . 3 1 Processor 1 | . . . . . . 1 Hackware 1 | . . . 1 . . . Protection 8 | . 3 . 2 . 3 . Artifact . | . . . . . . . Weapon 31 | . 4 2 7 2 13 3 Energy Gun . | . . . . . . . Energy Cannon . | . . . . . . . Ballistic Gun 27 | . 4 2 7 1 10 3 Ballistic Cannon . | . . . . . . . Launcher 2 | . . . . 1 1 . Special Weapon 2 | . . . . . 2 . Impact Weapon . | . . . . . . . Slashing Weapon . | . . . . . . . Piercing Weapon . | . . . . . . . Special Melee Weapon . | . . . . . . . Unidentified Prototypes 8 | . . . . . 6 2 Parts Lost 21 | . 2 1 2 . 12 4 Power 1 | . . . . . 1 . Propulsion 2 | . . . . . 2 . Utility 7 | . 1 . 2 . 3 1 Weapon 11 | . 1 1 . . 6 3 Highest Loss Streak 6 | . 1 1 1 . 6 3 Average Slot Usage (%) 96 | . 95 99 97 100 93 96 Engine 9 | . 14 14 11 11 5 . Core 2 | . . . . . 4 11 Treads 15 | . 21 26 18 11 6 . Leg 4 | . . . . . 9 22 Wheel 4 | . 6 1 3 11 5 . Device 4 | . . . 8 11 5 8 Storage 12 | . 14 14 11 11 12 11 Hackware 1 | . . . 6 . . . Protection 8 | . 9 14 4 11 10 2 Ballistic Gun 30 | . 27 27 32 33 31 32 Naked Turns . | . . . . . . . Heaviest Build 98 | 12 32 30 59 59 98 98 Greatest Support 60 | 40 40 40 40 10 60 60 Greatest Overweight (x) 5 | . 2 2 5 5 5 1 Average Overweight (x) 1 | . 1 . 1 5 3 1 Largest Inventory Capacity 20 | 8 15 15 20 20 20 20 Average Capacity 17 | 8 14 15 17 20 20 20 Most Carried 20 | 5 10 10 20 20 20 20 Average Carried 13 | 4 6 8 15 19 17 18 Final Capacity 20 | 8 15 15 20 20 20 20 Final Carried 20 | 2 9 9 20 19 20 19 Class Distribution -------------------- 39% | Mutant 17% | Tank 13% | Scavenger-Skirmisher 12% | Scavenger-Tank 9% | Scavenger-Mutant 4% | Scavenger-Gunner Dominant Class ---------------- Mutant | -10/Materials Mutant | -10/Mines Scavenger-Skirmisher | -9/Materials Scavenger-Tank | -9/Mines Tank | -9/Exiles Scavenger-Gunner | -8/Mines Resources | -11 -10 -10 -9 -9 -9 -8 ----------- Run | Scr Mat Min Mat Min Exi Min Matter Collected 4054 | 200 774 294 1028 84 1044 630 Remotely . | . . . . . . . Salvage Created 4107 | . 746 339 1725 66 608 623 Parts 297 | . 38 35 106 11 73 34 Haulers Intercepted 7 | . 2 . 5 . . . Recyclers Shooed 3 | . 1 . 2 . . . Parts Field Recycled . | . . . . . . . Retrieved Matter . | . . . . . . . Parts Self-Destructed . | . . . . . . . Prevented . | . . . . . . . Kills | -11 -10 -10 -9 -9 -9 -8 ------- Run | Scr Mat Min Mat Min Exi Min Combat Hostiles Destroyed 72 | . 13 13 25 7 6 8 Guns 64 | . 13 13 25 4 1 8 AOE 8 | . . . . 3 5 . Classes Destroyed 14 | . 6 2 3 . 3 . Worker 7 | . 2 . 5 . . . Builder 5 | . . 1 3 . . 1 Tunneler 6 | . 1 . 2 . . 3 Hauler 7 | . 2 . 5 . . . Recycler 3 | . 1 . 2 . . . Operator 1 | . . . 1 . . . Turret 1 | . . . . . 1 . Watcher 2 | . 1 . 1 . . . Swarmer 16 | . . 6 3 7 . . Grunt 40 | . 13 7 13 . . 7 Duelist 1 | . . . 1 . . . Sentry 8 | . . . 8 . . . Zionite 7 | . . . . . 7 . Assembled 5 | . . . . . 5 . Best Kill Streak 5 | . 3 5 5 4 5 4 Combat Bots Only 5 | . 3 5 3 4 4 3 Max Kills in Single Turn 3 | . 1 2 2 3 2 3 Gunslinging 1 | . . 1 . . . . Exploded 3 | . . . . 3 2 . Melee . | . . . . . . . Uniques/NPCs Destroyed 5 | . . . . . 4 1 8R-AWN (-9/Exiles) EX-DEC (-9/Exiles) EX-HEX (-9/Exiles) EX-BIN (-9/Exiles) P1-3CE (-8/Mines) Combat | -11 -10 -10 -9 -9 -9 -8 -------- Run | Scr Mat Min Mat Min Exi Min Damage Taken 4709 | . 952 411 854 117 1360 1015 Core 593 | . 117 69 110 16 223 58 Absorbed by Shields . | . . . . . . . Core Remaining (%) 62 | 100 . 25 . . . . Volleys Fired 360 | . 78 34 108 7 99 34 Largest 3 | . 2 2 3 3 3 3 Hottest 80 | . 40 40 66 66 80 80 Shots Fired 895 | . 156 67 324 19 235 94 Gun 875 | . 156 67 324 18 216 94 Cannon . | . . . . . . . Launcher 7 | . . . . 1 6 . Special 13 | . . . . . 13 . Kinetic 875 | . 156 67 324 18 216 94 Thermal 13 | . . . . . 13 . Explosive 7 | . . . . 1 6 . Electromagnetic . | . . . . . . . Robot Hit Streak 23 | . 9 9 23 11 14 9 Robot Miss Streak 5 | . 5 4 5 2 5 3 Penetration Max 2 | . . . . . 2 2 Secondary Targets 8 | . 1 3 2 1 . 1 Max Gunslinging Chain 1 | . 1 1 1 1 . 1 Shots Hit Robots 562 | . 102 41 204 11 139 65 Core Hits 218 | . 37 21 76 7 48 29 Critical Kills 8 | . 1 . . . 3 4 Critical Parts Destroyed 24 | . . . . . 10 14 Critical Strikes 33 | . 1 . . . 13 19 Destroy 33 | . 1 . . . 13 19 Melee Attacks . | . . . . . . . Impact . | . . . . . . . Slashing . | . . . . . . . Piercing . | . . . . . . . Sneak Attacks . | . . . . . . . Combat Hostiles . | . . . . . . . Follow-up Attacks . | . . . . . . . Damage Inflicted 8046 | . 1251 548 2732 334 2007 1174 Guns 7490 | . 1158 548 2732 131 1747 1174 Cannons . | . . . . . . . Explosions 549 | . 93 . . 203 253 . Melee . | . . . . . . . Ramming . | . . . . . . . Kinetic 7490 | . 1158 548 2732 131 1747 1174 Thermal 7 | . . . . . 7 . Explosive 549 | . 93 . . 203 253 . Electromagnetic . | . . . . . . . Impact . | . . . . . . . Slashing . | . . . . . . . Piercing . | . . . . . . . Highest Corruption . | . . . . . . . Average Corruption . | . . . . . . . Corruption Purged . | . . . . . . . Overload Shots . | . . . . . . . Overflow Damage . | . . . . . . . Projectiles . | . . . . . . . Explosions . | . . . . . . . Melee . | . . . . . . . Knockbacks . | . . . . . . . Impact . | . . . . . . . Kinetic . | . . . . . . . Secondary . | . . . . . . . Self-Inflicted Damage 315 | . 182 . . 30 103 . Shots 7 | . 2 . . 1 4 . Rammed . | . . . . . . . Targets Rammed . | . . . . . . . Kicked . | . . . . . . . Crushed . | . . . . . . . Highest Temperature 330 | . 25 . 89 27 330 291 Average Temperature 53 | . 6 . 16 11 88 107 Received Heat Transfer 1179 | . 426 144 348 . . 261 Siege Activations . | . . . . . . . Robots Corrupted . | . . . . . . . Combat Hostiles . | . . . . . . . Parts Fried . | . . . . . . . Impact Corruptions . | . . . . . . . Robots Melted . | . . . . . . . Combat Hostiles . | . . . . . . . Parts Melted . | . . . . . . . Heat Transferred 63 | . . . . . 63 . Parts Sabotaged . | . . . . . . . Parts Stolen . | . . . . . . . Parts Stripped . | . . . . . . . Power Chain Reactions . | . . . . . . . Missiles Intercepted . | . . . . . . . Alert | -11 -10 -10 -9 -9 -9 -8 ------- Run | Scr Mat Min Mat Min Exi Min Peak Influence 662 | . 154 160 662 430 . 136 Initial 255 | . . 41 7 255 . . Average 188 | . 67 53 399 422 . 53 Maximum Alert Level 2 | . . . 2 2 . . Low Security (%) 64 | 100 100 100 6 . . 100 Level 1 13 | . . . 41 10 . . Level 2 21 | . . . 52 89 . . Level 3 . | . . . . . . . Level 4 . | . . . . . . . Level 5 . | . . . . . . . High Security . | . . . . . . . Max Security . | . . . . . . . Squads Dispatched 12 | . 4 . 8 . . . Investigation 6 | . 3 . 3 . . . Extermination . | . . . . . . . Reinforcement 6 | . 1 . 5 . . . Assault . | . . . . . . . Garrison . | . . . . . . . Intercept . | . . . . . . . Construction Impeded . | . . . . . . . Haulers Reinforced . | . . . . . . . Active Scanning Responses . | . . . . . . . Cargo Convoy Interrupts . | . . . . . . . Stealth | -11 -10 -10 -9 -9 -9 -8 --------- Run | Scr Mat Min Mat Min Exi Min Distress Signals 4 | . . . 4 . . . Communications Jammed . | . . . . . . . Distress Signals . | . . . . . . . Times Spotted 140 | . 28 14 51 7 29 11 Peak Tracking Total 11 | . 4 3 4 4 11 4 Tactical Retreats 14 | . . 1 2 . 10 1 Traps | -11 -10 -10 -9 -9 -9 -8 ------- Run | Scr Mat Min Mat Min Exi Min Traps Triggered 2 | . 2 . . . . . Indirectly . | . . . . . . . Trap Hack Attempts . | . . . . . . . Triggered . | . . . . . . . Disarmed . | . . . . . . . Reprogrammed . | . . . . . . . Reused . | . . . . . . . Traps Extracted . | . . . . . . . Installed . | . . . . . . . Triggered 1 | . . . . 1 . . Exploded 3 | . . . . . 3 . Machines | -11 -10 -10 -9 -9 -9 -8 ---------- Run | Scr Mat Min Mat Min Exi Min Machines Disabled 21 | . 2 1 1 1 16 . Max in Single Turn 2 | . 2 1 . 1 2 . Machines Sabotaged . | . . . . . . . Garrisons Compromised . | . . . . . . . Overloaded Fab Kills . | . . . . . . . Hacking | -11 -10 -10 -9 -9 -9 -8 --------- Run | Scr Mat Min Mat Min Exi Min Machines Accessed 19 | . 7 . 11 . 1 . Terminals 12 | . 5 . 7 . . . Fabricators . | . . . . . . . Repair Stations 1 | . . . 1 . . . Recycling Units 4 | . 2 . 2 . . . Scanalyzers 1 | . . . 1 . . . Garrison Access . | . . . . . . . Total Hacks 45 | . 18 . 26 . 1 . Successful 29 | . 9 . 19 . 1 . Failed 16 | . 9 . 7 . . . Catastrophic 2 | . 1 . 1 . . . Database Lockouts . | . . . . . . . Manual 18 | . 5 . 13 . . . Terminals 36 | . 16 . 20 . . . Fabricators . | . . . . . . . Repair Stations 2 | . . . 2 . . . Recycling Units 4 | . 2 . 2 . . . Scanalyzers 2 | . . . 2 . . . Garrison Access . | . . . . . . . Terminal Hacks 19 | . 7 . 11 . 1 . Record 1 | . . . . . 1 . Robot Analysis 2 | . 1 . 1 . . . Prototype ID Bank 5 | . 2 . 3 . . . Terminal Index 2 | . 2 . . . . . Alert Level 1 | . . . 1 . . . Unreport Threat 2 | . . . 2 . . . Locate Traps 2 | . 1 . 1 . . . Hauler Manifests 1 | . . . 1 . . . Zone Layout 3 | . 1 . 2 . . . Fabricator Hacks . | . . . . . . . Repair Station Hacks 2 | . . . 2 . . . Scan Component 1 | . . . 1 . . . Repair 1 | . . . 1 . . . Recycling Unit Hacks . | . . . . . . . Scanalyzer 2 | . . . 2 . . . Insert Component 1 | . . . 1 . . . Analyze 1 | . . . 1 . . . Garrison Access Hacks . | . . . . . . . Unauthorized Hacks 6 | . 2 . 4 . . . Terminals 2 | . . . 2 . . . Track 2 | . . . 2 . . . Fabricators . | . . . . . . . Repair Stations . | . . . . . . . Recycling Units 4 | . 2 . 2 . . . Tunnel 4 | . 2 . 2 . . . Scanalyzers . | . . . . . . . Garrison Access . | . . . . . . . Data Cores Recovered . | . . . . . . . Used . | . . . . . . . Hacking Detections 13 | . 5 . 8 . . . Full Trace Events 2 | . 1 . 1 . . . Feedback Events . | . . . . . . . Feedback Blocked . | . . . . . . . Robot Schematics Acquired . | . . . . . . . Robots Built . | . . . . . . . Authchips . | . . . . . . . Time . | . . . . . . . Total Robot Build Rating . | . . . . . . . Part Schematics Acquired 1 | . . . 1 . . . Parts Built . | . . . . . . . Authchips . | . . . . . . . Time . | . . . . . . . Total Part Build Rating . | . . . . . . . Parts Repaired 1 | . . . 1 . . . Time 26 | . . . 26 . . . Parts Recycled . | . . . . . . . Recycled Matter . | . . . . . . . Retrieved Matter . | . . . . . . . Retrieved Components . | . . . . . . . Parts Scanalyzed 1 | . . . 1 . . . Part Schematics Acquired 1 | . . . 1 . . . Parts Damaged 1 | . . . 1 . . . Bothacking | -11 -10 -10 -9 -9 -9 -8 ------------ Run | Scr Mat Min Mat Min Exi Min Used RIF Installer . | . . . . . . . Robots Hacked . | . . . . . . . Non-combat . | . . . . . . . Combat . | . . . . . . . Robot Hacks Applied . | . . . . . . . Relay Couplers Released . | . . . . . . . Fabnet Peak Effective % . | . . . . . . . Robots Rewired . | . . . . . . . Allies Hacked . | . . . . . . . Hacks Repelled . | . . . . . . . Allies | -11 -10 -10 -9 -9 -9 -8 -------- Run | Scr Mat Min Mat Min Exi Min Total Allies 3 | . . 3 . . . . Largest Group 3 | . . 3 3 . . . Highest-Rated Group 40 | . . 40 40 . . . Highest-Rated Ally 16 | . . 16 16 . . . Total Orders . | . . . . . . . Ally Attacks 43 | . . . 43 . . . Total Damage 411 | . . . 411 . . . Kills 7 | . . . 7 . . . Allies Corrupted . | . . . . . . . Allies Melted . | . . . . . . . Intel | -11 -10 -10 -9 -9 -9 -8 ------- Run | Scr Mat Min Mat Min Exi Min Robot Analysis Total 2 | . 1 . 1 . . . Derelict Logs Recovered 1 | . . 1 . . . . Drone Launches . | . . . . . . . Drone Recoveries . | . . . . . . . Exploration | -11 -10 -10 -9 -9 -9 -8 ------------- Run | Scr Mat Min Mat Min Exi Min Turns Passed 7474 | 5 1526 1357 1815 327 1759 685 Spaces Moved 3698 | 1 952 631 829 193 806 286 Core . | . . . . . . . Treads 1512 | 1 408 577 513 . 13 . Legs 585 | . . . . . 299 286 Wheels 1601 | . 544 54 316 193 494 . Hover . | . . . . . . . Flight . | . . . . . . . Fastest Speed 110 | 160 110 110 155 155 155 190 Average Speed 156 | 160 131 155 163 155 169 190 Slowest Speed 240 | 160 240 160 240 155 240 190 Overloaded Moves . | . . . . . . . Propulsion Burnouts . | . . . . . . . Robots Hopped . | . . . . . . . Cave-ins Triggered . | . . . . . . . Exploration Rate (%) 62 | 2 97 95 77 39 78 47 Regions Visited 6 Branch Regions 4 Pre-discovered Areas 6 | . 2 1 2 . 1 . Known Exits Taken . | . . . . . . . Unknown Exits Taken 6 | 1 1 1 1 1 1 . Scrap Searched 2 | . . 1 . . . 1 Spaces Dug . | . . . . . . . Terrain Destroyed 117 | . 37 . . 6 59 15 Melee . | . . . . . . . Projectile 35 | . . . . . 21 14 AOE 76 | . 37 . . 6 33 . Terrain Rammed . | . . . . . . . Walls Destroyed . | . . . . . . . Machines Disabled . | . . . . . . . Actions | -11 -10 -10 -9 -9 -9 -8 --------- Run | Scr Mat Min Mat Min Exi Min Total 4662 | 6 1077 940 1071 206 1006 356 Wait 412 | . 16 269 70 1 32 24 Move 3692 | . 951 630 828 192 805 286 Hop . | . . . . . . . Pick Up 61 | . 10 1 21 . 25 4 Fast Attach 12 | . 6 . 5 . . 1 Attach 24 | 1 1 2 2 . 14 4 Detach 2 | . . . . . 2 . Swap 45 | 1 7 2 14 4 15 2 Drop 54 | 4 8 2 23 2 14 1 Fire 360 | . 78 34 108 7 99 34 Melee . | . . . . . . . Ram . | . . . . . . . Kick . | . . . . . . . Crush . | . . . . . . . Escape Stasis . | . . . . . . . Rewire . | . . . . . . . Trap . | . . . . . . . Miscellaneous . | . . . . . . . Route ------- -11/Scrapyard -10/Materials (discovered 5 exits: *Mat x3 / [*Min x2]) -10/Mines (discovered 2 exits: *Mat x2) -9/Materials (discovered 4 exits: [*Mat x2] / [*Min] / [*Sto]) -9/Mines (discovered 2 exits: [*Mat] / *Exi) -9/Exiles -8/Mines History --------- Turn | Location | Event 6 | -11/Scrapyard | Discovered new exit (range 0) 6 | -11/Scrapyard | Entered Materials 250 | -10/Materials | Discovered new exit (range 10) 317 | -10/Materials | Build established: Mutant 332 | -10/Materials | Discovered new exit (range 6) 529 | -10/Materials | Discovered new exit (range 14) 729 | -10/Materials | Discovered new exit (range 16) 916 | -10/Materials | Discovered new exit (range 16) 1532 | -10/Materials | Entered Mines 1571 | -10/Mines | Learned location of Zion (-6) 1584 | -10/Mines | Excavation squad dispatched 1584 | -10/Mines | A large section of the Mines collapsed 1803 | -10/Mines | Core integrity fell below 50% 1834 | -10/Mines | Excavation squad dispatched 1969 | -10/Mines | Discovered new exit (range 3) 2339 | -10/Mines | Discovered new exit (range 10) 2379 | -10/Mines | A weapon hastily lodged in a ceiling crevice suddenly fell to the ground 2807 | -10/Mines | Assisted by bots powering up and referring to "LRC-V3" 2889 | -10/Mines | Entered Materials 2889 | -9/Materials | Accompanied by 3 allies 2889 | -9/Materials | Evolved 2 slots: Utility x1, Weapon x1 3252 | -9/Materials | Build established: Tank 3328 | -9/Materials | Discovered new exit (range 9) 3457 | -9/Materials | Repaired Lgt. Assault Rifle 3633 | -9/Materials | Build established: Scavenger-Skirmisher 3948 | -9/Materials | Discovered new exit (range 15) 4300 | -9/Materials | Discovered new exit (range 7) 4619 | -9/Materials | Discovered new exit (range 14) 4673 | -9/Materials | Build established: Scavenger-Tank 4704 | -9/Materials | Entered Mines 4804 | -9/Mines | Deemed a non-threat by the Exiles lab entrance 4804 | -9/Mines | Discovered new exit (range 5) 4846 | -9/Mines | Discovered new exit (range 13) 4930 | -9/Mines | Assembled infested the area 5031 | -9/Mines | Entered Exiles 5069 | -9/Exiles | Met 8R-AWN 5133 | -9/Exiles | Met EX-HEX 5181 | -9/Exiles | Build established: Tank 5194 | -9/Exiles | Met EX-DEC 5304 | -9/Exiles | Discovered new exit (range 11) 5772 | -9/Exiles | Attacked by the Exiles 5865 | -9/Exiles | Core integrity fell below 50% 5899 | -9/Exiles | Core integrity fell below 20% 5940 | -9/Exiles | Lost 6 parts (1p2u3w) 5979 | -9/Exiles | Destroyed 8R-AWN 5994 | -9/Exiles | Found Prototype Ballistic Gun 6000 | -9/Exiles | Found Prototype Ballistic Gun 6003 | -9/Exiles | Lost 5 parts (2n3w) 6006 | -9/Exiles | Found Prototype Protection 6020 | -9/Exiles | Found Prototype Processor 6023 | -9/Exiles | Found Prototype Device 6032 | -9/Exiles | Identified AS-neutralizer No. 17b 6034 | -9/Exiles | Identified 8R-AWN's Armor/EX 6035 | -9/Exiles | Identified 8R-AWN's Boregun (x2) 6318 | -9/Exiles | Build established: Scavenger-Mutant 6354 | -9/Exiles | Destroyed EX-DEC 6418 | -9/Exiles | Destroyed EX-HEX 6432 | -9/Exiles | Destroyed EX-BIN 6790 | -9/Exiles | Entered Mines 6897 | -8/Mines | Build established: Scavenger-Tank 6933 | -8/Mines | P1-3CE came to Exiles' defense 6941 | -8/Mines | Identified Exp. Targeting Computer 6971 | -8/Mines | Lost 3 parts (1u2w) 7224 | -8/Mines | Destroyed P1-3CE 7229 | -8/Mines | Found Prototype Hackware 7235 | -8/Mines | Found Prototype Processor 7475 | -8/Mines | Destroyed by G-47 Trooper with Particle Gun Last Messages --------------- 07235_ Acquired Prototype Processor. 07236_ Acquired 120 matter. 07249_ Dropped Hcp. Matter Pod. 07250_ Acquired Prototype Storage. 07251_ Identified Adv. Matter Compressor. 07303_ Searching scrap... 07303_ Found Assault Rifle. 07303_ Found Rnf. Ion Engine. 07303_ Found Targeting Computer. 07303_ Found Lrg. Storage Unit. 07303_ Found 24 Matter. 07304_ Acquired 24 matter. 07463_ HV Slug penetrates G-47 Trooper. 07463_ G-47 Trooper suffers critical hit (Destroy). 07463_ Destroyed Lgt. Nuclear Core. 07463_ HV Slug penetrates Wall. 07466_ HV Slug penetrates G-47 Trooper. 07466_ HV Slug penetrates Wall. 07467_ 8R-AWN's Boregun destroyed. 07471_ G-47 Trooper destroyed. Map ----- +----------------------------------------------------+ | #########???##### #?????????####????? | | ## ##??# #????????## ##???? | | #### ## #???????### ! #?### | | ### ## ##??????## #?# | | """## #?####### #???????# #?# | | ## ##### #???????## *#??????## #??# | | ##= ### ##### #????????# !######## #???# | | ####[#?# % #????????#[! #????# | | ???# #?####### ##???????# * ! ###### | | ???#[#???????# ##??????######### ### | | ???#%#??????## ##??###### ### #?## | | ???#%#?????## #?## ## #??# ##### | | ???**#?????# #?# #??#! #???### | | ???###?????# ##?# ## #?# #?????? | | ???###?????## ##?## ### #?# =#?????? | | ???????????## ##?## ##?# #?## #?????? | | ??????# ## #### ##r ###??# #??## ##?????? | | ??????# ## ###! ##????# #???####??????? | | ??????## ##?#! #?????# #?????????????? | | ???????# ##??#!!##??### #?????????????? | | ???????# ##??##!! #### ##????????????? | | ???????# ##??## !! ##???????????? | | ???????# ###??## #???????????? | | ???????# ##???## #???????????? | | ???????## ???### ## #??????????? | | ????????## ??## @ ;### #??????????? | | ?????????# "??# [ #;##?### #??????????? | | ?????????## #??# gg%####????## #??????????? | | ??????????# ???# #????????# #??????????? | | ??????????# ???# #????????# #??????????? | | ??????????# ???# #????????# #??????????? | | ?????????? ????## #????????## ##??????????? | | ???????????? ?????## ??????????###???????????? | | ???????????????????## ????????????????????????? | | ????????????????????### ????????????????????????? | | ???????????????????????# ????????????????????????? | | ????????????????????????#????????????????????????? | | ?????????????????????????????????????????????????? | | ?????????????????????????????????????????????????? | | ?????????????????????????????????????????????????? | | ?????????????????????????????????????????????????? | | ?????????????????????????????????????????????????? | | ?????????????????????????????????????????????????? | | ?????????????????????????????????????????????????? | | ?????????????????????????????????????????????????? | | ?????????????????????????????????????????????????? | | ?????????????????????????????????????????????????? | | ?????????????????????????????????????????????????? | | ?????????????????????????????????????????????????? | | ?????????????????????????????????????????????????? | +----------------------------------------------------+ Best States ------------- Heat Dissipation 54 Energy Generation 19 Energy Capacity 310 Matter Stores 404 Matter Capacity 700 Sight Range 16 Terrain Scan Density 10 Armor Coverage 1000 Resistance: EX 90 Propulsion Shielding 33 Evasion (%) 40 Targeting Accuracy 12 Recoil Reduction 2 Offensive Hacking 10 Authchip Count 1 Item Schematics ----------------- Arm. Wheel | -9/Materials | Scanalyzed Robot Schematics ------------------ None Fabricated ------------ Nothing Alien Tech Used ----------------- None Achievements -------------- None Challenges ------------ None Game ------ Seed ComponentDeepNullifier Manual? 0 Play Time 00:39:19 Cumulative 522.7 hours Start 2021.11.29 @ 01:36:17 End 2021.11.29 @ 02:19:31 Sessions 1 Manual Loads 0 Difficulty Rogue Special Mode None Game No. 510 Rogue 510 Adventurer 0 Explorer 0 Win Type - Total 14 Types 9/1/3/1/0/0/0/0/0 Lore% 86 Gallery% 94 Achievement% 74 Wizard Run 0 Options --------- ASCII 0 Keyboard 0 Movement Mouse Keybinds 1 Fullscreen 2 Font 24/Smallcaps Map View 76x50 Tactical HUD 1 Map Filters NONE Filters NONE Steam 1 RUN: e29e0650-1c33-4cde-a9a9-ee0337330fa2